fUST/lending_fUST_20250803
["ID","MTS","AMOUNT","RATE_DAILY","PERIOD"]
[377049527,1754219447131,-743.2,0.00027945,10]
[377049528,1754219447141,-460.0,0.00027945,10]
[377049529,1754219447151,-462.04936641,0.00027945,10]
[377049530,1754219447160,-743.2,0.00027945,10]
[377049531,1754219447169,-743.2,0.00027945,10]
[377049532,1754219447179,-743.41,0.00027945,10]
[377049533,1754219447188,-151.731813,0.00027945,7]
[377049534,1754219447198,-460.0,0.00027945,10]
[377049535,1754219447211,-460.0,0.00027945,10]
[377049536,1754219447220,-460.0,0.00027945,10]
[377049537,1754219447229,-460.0,0.00027945,10]
[377049538,1754219447238,-576.07861233,0.00027945,10]
[377049539,1754219447248,-460.0,0.00027945,10]
[377049540,1754219447257,-461.59803318,0.00027945,10]
[377049541,1754219447266,-460.0,0.00027945,10]
[377049542,1754219447276,-460.0,0.00027945,10]
[377049543,1754219447285,-460.0,0.00027945,10]
[377049544,1754219447295,-460.0,0.00027945,10]
[377049545,1754219447305,-460.0,0.00027945,10]
[377049546,1754219447315,-460.0,0.00027945,10]
[377049547,1754219447324,-460.0,0.00027945,10]
[377049548,1754219447333,-460.0,0.00027945,10]
[377049549,1754219447343,-460.0,0.00027945,10]
[377049550,1754219447352,-460.0,0.00027945,10]
[377049551,1754219447361,-460.0,0.00027945,10]
[377049552,1754219447371,-460.0,0.00027945,5]
[377049553,1754219447380,-460.0,0.00027945,10]
[377049554,1754219447389,-460.0,0.00027945,10]
[377049555,1754219447398,-151.0,0.00027945,7]
[377049556,1754219447407,-151.0,0.00027945,7]
[377049557,1754219447417,-460.0,0.00027945,10]
[377049558,1754219447427,-151.0,0.00027945,7]
[377049559,1754219447437,-460.0,0.00027945,10]
[377049560,1754219447446,-460.0,0.00027945,10]
[377049561,1754219447456,-460.0,0.00027945,10]
[377049562,1754219447466,-527.12062288,0.00027945,10]
[377049563,1754219447476,-460.0,0.00027945,10]
[377049564,1754219447485,-460.0,0.00027945,10]
[377049565,1754219447495,-460.0,0.00027945,10]
[377049566,1754219447504,-460.0,0.00027945,10]
[377049567,1754219447513,-460.0,0.00027945,10]
[377049568,1754219447522,-460.0,0.00027945,10]
[377049569,1754219447531,-460.0,0.00027945,10]
[377049570,1754219447540,-527.5697204,0.00027945,10]
[377049571,1754219447549,-386.14242188,0.00027945,10]
[377049572,1754219447558,-460.0,0.00027945,10]
[377049573,1754219447567,-520.4,0.00027945,10]
[377049574,1754219447577,-460.0,0.00027945,10]
[377049575,1754219447586,-460.0,0.00027945,10]
[377049576,1754219447595,-460.0,0.00027945,10]
[377049577,1754219447604,-460.0,0.00027945,10]
[377049578,1754219447614,-460.0,0.00027945,10]
[377049579,1754219447623,-460.0,0.00027945,10]
[377049580,1754219447632,-460.0,0.00027945,10]
[377049581,1754219447641,-151.0,0.00027945,7]
[377049582,1754219447650,-151.0,0.00027945,7]
[377049583,1754219447660,-151.0,0.00027945,7]
[377049584,1754219447670,-460.0,0.00027945,10]
[377049585,1754219447679,-460.0,0.00027945,10]
[377049586,1754219447689,-170.0573088,0.00027945,10]
[377049587,1754219447699,-461.77358757,0.00027945,10]
[377049588,1754219447709,-460.0,0.00027945,10]
[377049589,1754219447718,-461.96778615,0.00027945,10]
[377049590,1754219447727,-460.0,0.00027971,10]
[377049591,1754219447736,-460.0,0.00027971,10]
[377049592,1754219447745,-237.53,0.00027971,10]
[377049593,1754219447754,-500.0,0.00027973,5]
[377049594,1754219447764,-500.48698167,0.00027973,5]
[377049595,1754219447773,-500.0,0.00027973,5]
[377049596,1754219447782,-500.0,0.00027973,5]
[377049597,1754219447792,-503.78864115,0.00027973,5]
[377049598,1754219447801,-491.8380123,0.00027973,5]
[377049599,1754219447810,-500.0,0.00027973,5]
[377049600,1754219447819,-528.82260462,0.00027973,5]
[377049601,1754219447828,-337.503316,0.00027973,5]
[377049602,1754219447837,-500.24555011,0.00027973,5]
[377049603,1754219447846,-500.0,0.00027973,5]
[377049604,1754219447855,-500.0,0.00027973,5]
[377049605,1754219447864,-500.0,0.00027973,5]
[377049606,1754219447873,-347.13850684,0.00027973,5]
[377049607,1754219447882,-500.0,0.00027973,5]
[377049608,1754219447891,-500.0,0.00027973,5]
[377049609,1754219447900,-500.0,0.00027973,5]
[377049610,1754219447909,-500.0,0.00027973,5]
[377049611,1754219447919,-500.0,0.00027973,5]
[377049612,1754219447927,-151.0,0.00027973,7]
[377049613,1754219447937,-1484.15,0.00028,7]
[377049614,1754219447946,-2954.99,0.00028,7]
[377049615,1754219447955,-447.94,0.00028,7]
[377049616,1754219447965,-906.97850218,0.0002803,2]
[377049617,1754219447974,-420.0,0.00028116,2]
[377049618,1754219447984,-618.69,0.000282,2]
[377049619,1754219447993,-151.0,0.00028209,7]
[377049620,1754219448002,-5196.41077436,0.00028284,2]
[377049621,1754219448012,-3999.59765669,0.00028294,4]
[377049622,1754219448021,-265.62074,0.00028294,7]
[377049623,1754219448030,-500.60236846,0.00028521,5]
[377049624,1754219448040,-1000.0,0.00028521,5]
[377049625,1754219448049,-500.0,0.00028521,5]
[377049626,1754219448058,-265.51548543,0.00028521,5]
[377049627,1754219448067,-1000.0,0.00028521,5]
[377049628,1754219448077,-1000.0,0.00028521,5]
[377049629,1754219448086,-160.0,0.00029017,2]
[377049630,1754219448096,-1500.0,0.00029068,5]
[377049631,1754219448106,-500.0,0.00029068,5]
[377049632,1754219448115,-1500.0,0.00029068,5]
[377049633,1754219448124,-151.0,0.0002909,7]
[377049634,1754219448133,-151.0,0.0002909,7]
[377049635,1754219448143,-151.0,0.0002909,7]
[377049636,1754219448152,-151.0,0.0002909,7]
[377049637,1754219448161,-189.930647,0.0002909,7]
[377049638,1754219448170,-189.930647,0.0002909,7]
[377049639,1754219448180,-151.0,0.0002909,7]
[377049640,1754219448190,-151.0,0.0002909,7]
[377049641,1754219448199,-151.0,0.0002909,7]
[377049642,1754219448213,-151.0,0.0002909,7]
[377049643,1754219448222,-25320.13,0.000291,2]
[377049644,1754219448232,-151.0,0.000291,7]
[377049645,1754219448242,-151.0,0.000291,7]
[377049646,1754219448254,-151.0,0.000291,7]
[377049647,1754219448264,-1501.43,0.00029304,4]
[377049648,1754219448274,-398.88,0.00029305,3]
[377049649,1754219448284,-260.0,0.00029565,2]
[377049650,1754219448294,-973.3304,0.00029616,5]
[377049651,1754219448304,-2000.0,0.00029616,5]
[377049652,1754219448314,-200.0,0.0002991,15]
[377049653,1754219448323,-200.0,0.0002991,15]
[377049654,1754219448333,-300.0,0.0002991,15]
[377049655,1754219448343,-407.0,0.00029994,2]
[377049656,1754219448352,-151.0,0.0003,7]
[377049657,1754219448362,-151.0,0.0003,7]
[377049658,1754219448372,-151.0,0.0003,7]
[377049659,1754219448382,-153.0,0.0003,14]
[377049660,1754219448392,-360.0,0.00030113,2]
[377049661,1754219448401,-151.0,0.00030133,2]
[377049662,1754219448410,-5196.41077436,0.00030154,2]
[377049663,1754219448419,-2500.0,0.00030164,5]
[377049664,1754219448429,-2200.0,0.00030376,2]
[377049665,1754219448439,-250.0,0.00030404,2]
[377049666,1754219448448,-587.0,0.00030428,2]
[377049667,1754219448458,-150.0,0.000305,2]
[377049668,1754219448467,-380.0,0.00030661,2]
[377049669,1754219448476,-1501.43,0.00030673,6]
[377049670,1754219448486,-3000.0,0.00030712,5]
[377049671,1754219448496,-151.0,0.000308,120]
[377049672,1754219448505,-509.61208512,0.00030859,2]
[377049673,1754219448515,-153.028208,0.00030859,7]
[377049674,1754219448524,-3500.0,0.0003126,5]
[377049675,1754219448534,-200.0,0.0003148,120]
[377049676,1754219448543,-447.94,0.000315,7]
[377049677,1754219448552,-200.0,0.00031798,120]
[377049678,1754219448562,-4000.0,0.00031808,5]
[377049679,1754219448571,-2954.99,0.000319,7]
[377049680,1754219448581,-1501.43,0.00032043,8]
[377049681,1754219448592,-151.0,0.000322,120]
[377049682,1754219448602,-277.7637517,0.00032309,30]
[377049683,1754219448611,-467.19032018,0.00032356,5]
[377049684,1754219448620,-5196.41077436,0.0003279,2]
[377049685,1754219448630,-200.0,0.00032795,15]
[377049686,1754219448639,-200.0,0.00032795,15]
[377049687,1754219448649,-200.0,0.00032795,15]
[377049688,1754219448658,-379.0,0.00032795,15]
[377049689,1754219448668,-25320.13,0.000328,2]
[377049690,1754219448677,-151.0,0.000328,7]
[377049691,1754219448687,-151.0,0.000328,7]
[377049692,1754219448697,-151.0,0.000328,7]
[377049693,1754219448706,-189.930647,0.000328,7]
[377049694,1754219448715,-189.930647,0.000328,7]
[377049695,1754219448725,-262.392376,0.000328,7]
[377049696,1754219448734,-201.425766,0.000328,7]
[377049697,1754219448743,-151.0,0.000328,7]
[377049698,1754219448753,-823.0,0.00032931,2]
[377049699,1754219448762,-407.0,0.00032994,2]
[377049700,1754219448772,-906.97850218,0.0003303,2]
[377049701,1754219448781,-200.0,0.00033158,120]
[377049702,1754219448791,-157.772016,0.00033165,2]
[377049703,1754219448800,-1501.43,0.00033413,120]
[377049704,1754219448810,-151.0,0.000335,120]
[377049705,1754219448819,-509.61208512,0.00033873,2]
[377049706,1754219448828,-200.0,0.00034738,120]
[377049707,1754219448837,-1501.43,0.00034783,120]
[377049708,1754219448847,-151.0,0.000349,120]
[377049709,1754219448857,-1000.0,0.00035,90]
[377049710,1754219448866,-1152.0,0.00035639,2]
[377049711,1754219448875,-1484.15,0.000357,7]
[377049712,1754219448885,-151.0,0.000357,14]
[377049713,1754219448894,-200.0,0.00035839,120]
[377049714,1754219448903,-200.0,0.00035959,15]
[377049715,1754219448912,-200.0,0.00035959,15]
[377049716,1754219448921,-200.0,0.00035959,15]
[377049717,1754219448931,-200.0,0.00035959,15]
[377049718,1754219448940,-200.0,0.00035959,15]
[377049719,1754219448949,-371.0,0.00035959,15]
[377049720,1754219448959,-153.142649,0.00035976,5]
[377049721,1754219448968,-407.0,0.00035994,2]
[377049722,1754219448977,-1000.0,0.00036,120]
[377049723,1754219448986,-1501.43,0.00036153,120]
[377049724,1754219448996,-151.0,0.000363,120]
[377049725,1754219449005,-447.94,0.000363,7]
[377049726,1754219449014,-259.64,0.00036867,2]
[377049727,1754219449023,-509.61208512,0.00036886,2]
[377049728,1754219449033,-152.52088525,0.00036929,120]
[377049729,1754219449042,-150.0,0.00036973,3]
[377049730,1754219449051,-151.0,0.0003699,14]
[377049731,1754219449060,-229.666824,0.0003699,14]
[377049732,1754219449070,-151.0,0.0003699,14]
[377049733,1754219449082,-151.0,0.0003699,14]
[377049734,1754219449091,-1000.0,0.00037,120]
[377049735,1754219449101,-25320.13,0.00037,14]
[377049736,1754219449110,-151.0,0.00037,14]
[377049737,1754219449120,-200.0,0.00037225,120]
[377049738,1754219449130,-1501.43,0.00037523,120]
[377049739,1754219449141,-151.0,0.000376,120]
[377049740,1754219449150,-200.0,0.00037646,120]
[377049741,1754219449160,-5196.41077436,0.00037864,3]
[377049742,1754219449169,-200.0,0.00037874,120]
[377049743,1754219449179,-200.0,0.00037927,120]
[377049744,1754219449188,-1000.0,0.00038,120]
[377049745,1754219449198,-2954.99,0.00038,14]
[377049746,1754219449211,-724.0,0.00038,7]
[377049747,1754219449223,-400.0,0.00038356,120]
[377049748,1754219449232,-200.0,0.00038421,120]
[377049749,1754219449241,-1613.0,0.0003857,5]
[377049750,1754219449335,-200.0,0.00038674,120]
[377049751,1754219449344,-200.0,0.00038761,120]
[377049752,1754219449355,-151.0,0.000388,16]
[377049753,1754219449364,-151.0,0.000388,17]
[377049754,1754219449373,-151.0,0.000388,20]
[377049755,1754219449383,-800.0,0.00038806,7]
[377049756,1754219449392,-177.389451,0.00038833,2]
[377049757,1754219449402,-1501.43,0.00038893,120]
[377049758,1754219449411,-407.0,0.00038994,2]
[377049759,1754219449421,-151.0,0.00038999,14]
[377049760,1754219449430,-189.930647,0.00038999,14]
[377049761,1754219449441,-189.930647,0.00038999,14]
[377049762,1754219449450,-151.0,0.00038999,30]
[377049763,1754219449459,-250.0,0.00038999,30]
[377049764,1754219449468,-151.0,0.00038999,30]
[377049765,1754219449478,-151.0,0.00038999,30]
[377049766,1754219449487,-151.0,0.00038999,30]
[377049767,1754219449497,-250.0,0.00038999,30]
[377049768,1754219449506,-151.0,0.00038999,30]
[377049769,1754219449516,-151.0,0.00038999,30]
[377049770,1754219449525,-250.0,0.00038999,30]
[377049771,1754219449535,-151.0,0.00038999,30]
[377049772,1754219449544,-250.0,0.00038999,30]
[377049773,1754219449553,-500.0,0.00038999,30]
[377049774,1754219449563,-151.0,0.00038999,30]
[377049775,1754219449572,-151.0,0.00038999,30]
[377049776,1754219449581,-250.0,0.00038999,30]
[377049777,1754219449590,-151.0,0.00038999,30]
[377049778,1754219449600,-250.0,0.00038999,30]
[377049779,1754219449609,-151.0,0.00038999,30]
[377049780,1754219449618,-151.0,0.00038999,30]
[377049781,1754219449628,-151.0,0.00038999,30]
[377049782,1754219449637,-300.0,0.00038999,30]
[377049783,1754219449646,-151.0,0.00038999,30]
[377049784,1754219449655,-500.0,0.00038999,30]
[377049785,1754219449665,-300.0,0.00038999,30]
[377049786,1754219449675,-151.0,0.00038999,30]
[377049787,1754219449684,-300.0,0.00038999,30]
[377049788,1754219449693,-151.0,0.00038999,30]
[377049789,1754219449702,-300.0,0.00038999,30]
[377049790,1754219449711,-1888.0,0.00038999,30]
[377049791,1754219449721,-300.0,0.00038999,30]
[377049792,1754219449730,-1957.856,0.00038999,30]
[377049793,1754219449740,-300.0,0.00038999,30]
[377049794,1754219449750,-500.0,0.00038999,30]
[377049795,1754219449759,-500.0,0.00038999,30]
[377049796,1754219449769,-500.0,0.00038999,30]
[377049797,1754219449779,-151.0,0.00038999,30]
[377049798,1754219449788,-500.0,0.00038999,30]
[377049799,1754219449798,-500.0,0.00038999,30]
[377049800,1754219449808,-151.0,0.00038999,30]
[377049801,1754219449818,-151.0,0.00038999,30]
[377049802,1754219449827,-171.999136,0.00038999,30]
[377049803,1754219449836,-26227.25797604,0.00039,30]
[377049804,1754219449958,-576.97071454,0.00039,30]
[377049805,1754219449970,-496.82163735,0.00039,30]
[377049806,1754219450162,-2073.03823028,0.00039,30]
[377049807,1754219451848,-0.18800089,0.00039,30]
[377049812,1754219928072,153.0,0.00024,120]
[377049813,1754219929778,153.0,0.000255,120]
[377049814,1754219931644,153.0,0.000271,120]
[377049815,1754219933055,153.0,0.000286,120]
[377049816,1754219934404,153.0,0.000301,120]
[377049817,1754220165172,151.0,0.00024,120]
[377049818,1754220166562,151.0,0.000256,120]
[377049819,1754220167932,151.0,0.000271,120]
[377049820,1754220169525,151.0,0.000287,120]
[377049822,1754220210919,159.55655,0.00013699,2]
[377049823,1754220211106,159.55655,0.00020548,2]
[377049824,1754220314183,151.0,0.00020548,2]
[377049825,1754220338091,-150.0,0.00025038,2]
[377049826,1754220338112,-160.15683092,0.00025732,2]
[377049827,1754220338133,-1000.0,0.00025832,2]
[377049828,1754220338159,-190.735562,0.0002585,2]
[377049829,1754220338180,-124.00176421,0.00026825,2]
[377049835,1754220401091,-184.68011111,0.000265,2]
[377049844,1754220450924,200.0,0.000295,120]
[377049849,1754220519397,7845.99062478,0.0002,2]
[377049852,1754220526126,1160.8582219,0.00019,2]
[377049853,1754220527839,13554.47433377,0.0002249,7]
[377049854,1754220527860,16838.49904504,0.0002249,7]
[377049862,1754220570858,200.0,0.00027335,120]
[377049873,1754220631950,168.12,0.000227,2]
[377049915,1754220632363,-262.58041745,0.00024953,2]
[377049917,1754220632373,-784.35759058,0.000265,2]
[377049919,1754220632382,-210.07926083,0.00026825,2]
[377049921,1754220632392,-265.85273114,0.00026852,2]
[377050282,1754220640508,-34.14726886,0.00026852,2]
[377050284,1754220640517,-527.12062288,0.00026853,2]
[377050286,1754220640527,-160.0,0.00026853,2]
[377050288,1754220640537,-312.16666667,0.00026853,2]
[377050290,1754220640547,-215.12253551,0.00026853,2]
[377050292,1754220640557,-160.0,0.00026853,2]
[377050294,1754220640566,-231.62108626,0.00026853,2]
[377050296,1754220640576,-216.32054205,0.00026869,2]
[377050298,1754220640585,-160.0,0.00026869,2]
[377050300,1754220640595,-841.87402298,0.00026869,2]
[377050302,1754220640609,-160.0,0.00026869,2]
[377050304,1754220640618,-160.0,0.00026869,2]
[377050306,1754220640627,-460.95174316,0.00026869,2]
[377050308,1754220640636,-158.9,0.00027335,7]
[377050310,1754220640646,-159.55655,0.00027397,2]
[377050312,1754220640656,-3940.14792125,0.00027844,2]
[377050314,1754220640666,-2506.17433043,0.000279,18]
[377050316,1754220640675,-3117.84646461,0.00027935,2]
[377050318,1754220640684,-1438.87,0.00027944,2]
[377050320,1754220640694,-214.97575419,0.00027945,10]
[377050322,1754220640703,-460.0,0.00027945,10]
[377050324,1754220640712,-460.98236112,0.00027945,10]
[377050326,1754220640721,-460.0,0.00027945,10]
[377050329,1754220640740,-527.12062288,0.00027945,10]
[377050331,1754220640751,-461.5430142,0.00027945,10]
[377050333,1754220640760,-460.0,0.00027945,10]
[377050336,1754220640772,-460.0,0.00027945,10]
[377050338,1754220640782,-460.0,0.00027945,10]
[377050340,1754220640791,-460.0,0.00027945,10]
[377050342,1754220640801,-462.55292048,0.00027945,10]
[377050344,1754220640810,-460.0,0.00027945,10]
[377050346,1754220640821,-460.87861778,0.00027945,10]
[377050348,1754220640830,-460.0,0.00027945,10]
[377050350,1754220640840,-460.0,0.00027945,10]
[377050352,1754220640850,-460.0,0.00027945,10]
[377050354,1754220640860,-460.0,0.00027945,10]
[377050356,1754220640870,-229.12695468,0.00027945,10]
[377050902,1754220646462,-500.0,0.00027943,2]
[377050904,1754220646471,-500.0,0.00027943,2]
[377050906,1754220646489,-500.0,0.00027943,2]
[377050908,1754220646499,-500.0,0.00027943,2]
[377050910,1754220646509,-500.0,0.00027943,2]
[377050912,1754220646518,-500.0,0.00027943,2]
[377050914,1754220646528,-500.0,0.00027943,2]
[377050916,1754220646537,-500.0,0.00027943,2]
[377050918,1754220646547,-500.0,0.00027943,2]
[377050920,1754220646556,-500.0,0.00027943,2]
[377050922,1754220646566,-500.0,0.00027943,2]
[377050924,1754220646575,-500.0,0.00027943,2]
[377050926,1754220646584,-500.0,0.00027943,2]
[377050928,1754220646595,-500.0,0.00027943,2]
[377050930,1754220646607,-500.0,0.00027943,2]
[377050932,1754220646616,-500.0,0.00027943,2]
[377050934,1754220646625,-500.0,0.00027943,2]
[377050936,1754220646634,-500.0,0.00027943,2]
[377050938,1754220646646,-500.0,0.00027943,2]
[377050940,1754220646656,-500.0,0.00027943,2]
[377050942,1754220646665,-500.0,0.00027943,2]
[377050944,1754220646675,-500.0,0.00027943,2]
[377050946,1754220646684,-500.0,0.00027943,2]
[377050948,1754220646693,-500.0,0.00027943,2]
[377050950,1754220646703,-500.0,0.00027943,2]
[377050952,1754220646712,-500.0,0.00027943,2]
[377050954,1754220646722,-500.0,0.00027943,2]
[377050956,1754220646732,-500.0,0.00027943,2]
[377050958,1754220646741,-500.0,0.00027943,2]
[377050960,1754220646750,-500.0,0.00027943,2]
[377050962,1754220646759,-500.0,0.00027943,2]
[377050964,1754220646768,-500.0,0.00027943,2]
[377050966,1754220646777,-500.0,0.00027943,2]
[377050968,1754220646786,-500.0,0.00027943,2]
[377050970,1754220646796,-500.0,0.00027943,2]
[377050972,1754220646805,-500.0,0.00027943,2]
[377050974,1754220646815,-500.0,0.00027943,2]
[377050975,1754220646824,-500.0,0.00027943,2]
[377050976,1754220646832,-500.0,0.00027943,2]
[377050977,1754220646841,-500.0,0.00027943,2]
[377050978,1754220646850,-213.56926003,0.00027943,2]
[377050979,1754220646859,-500.0,0.00027943,2]
[377050980,1754220646868,-500.0,0.00027943,2]
[377050981,1754220646877,-500.0,0.00027943,2]
[377050982,1754220646886,-500.0,0.00027943,2]
[377050983,1754220646895,-500.0,0.00027943,2]
[377050984,1754220646905,-500.0,0.00027943,2]
[377050985,1754220646915,-500.0,0.00027943,2]
[377050987,1754220646924,-500.0,0.00027943,2]
[377050989,1754220646933,-500.0,0.00027943,2]
[377050991,1754220646943,-500.0,0.00027943,2]
[377050993,1754220646952,-500.0,0.00027943,2]
[377050995,1754220646961,-500.0,0.00027943,2]
[377050997,1754220646971,-500.0,0.00027943,2]
[377050999,1754220646980,-500.0,0.00027943,2]
[377051001,1754220646990,-500.0,0.00027943,2]
[377051003,1754220646999,-500.0,0.00027943,2]
[377051005,1754220647008,-500.0,0.00027943,2]
[377051007,1754220647017,-500.0,0.00027943,2]
[377051009,1754220647027,-500.0,0.00027943,2]
[377051011,1754220647035,-500.0,0.00027943,2]
[377051013,1754220647045,-500.0,0.00027943,2]
[377051015,1754220647054,-500.0,0.00027943,2]
[377051017,1754220647063,-500.0,0.00027943,2]
[377051019,1754220647073,-233.05398947,0.00027945,10]
[377051021,1754220647082,-460.0,0.00027945,10]
[377051023,1754220647092,-460.0,0.00027945,10]
[377051025,1754220647102,-460.0,0.00027945,10]
[377051027,1754220647111,-460.0,0.00027945,10]
[377051029,1754220647120,-460.0,0.00027945,10]
[377051031,1754220647129,-460.0,0.00027945,10]
[377051033,1754220647138,-460.0,0.00027945,10]
[377051035,1754220647148,-460.0,0.00027945,10]
[377051037,1754220647163,-460.0,0.00027945,10]
[377051039,1754220647172,-460.0,0.00027945,10]
[377051041,1754220647181,-460.0,0.00027945,10]
[377051043,1754220647192,-460.0,0.00027945,10]
[377051045,1754220647201,-460.0,0.00027945,10]
[377051047,1754220647210,-460.0,0.00027945,10]
[377051049,1754220647219,-460.0,0.00027945,10]
[377051051,1754220647228,-462.84258521,0.00027945,10]
[377051053,1754220647237,-460.0,0.00027945,10]
[377051055,1754220647246,-493.08103368,0.00027945,10]
[377051057,1754220647256,-460.0,0.00027945,10]
[377051059,1754220647265,-460.0,0.00027945,10]
[377051062,1754220647275,-460.0,0.00027945,10]
[377051064,1754220647284,-460.0,0.00027945,10]
[377051066,1754220647292,-241.01310132,0.00027945,10]
[377051068,1754220647302,-344.10851421,0.00027945,10]
[377051070,1754220647311,-460.0,0.00027945,10]
[377051072,1754220647320,-460.0,0.00027945,10]
[377051074,1754220647330,-460.0,0.00027945,10]
[377051076,1754220647339,-460.0,0.00027945,10]
[377051078,1754220647349,-460.0,0.00027945,10]
[377051080,1754220647359,-460.0,0.00027945,10]
[377051082,1754220647367,-248.29677758,0.00027945,10]
[377051767,1754220810241,1008.0,0.00030136,120]
[377051777,1754221213827,163.710572,0.00013699,2]
[377051778,1754221214026,163.710572,0.00020548,2]
[377051781,1754221522562,151.0,0.00020548,2]
[377051782,1754221558122,-1704.76878642,0.00025372,2]
[377051783,1754221607099,-181.98498686,0.00025629,2]
[377051811,1754221832810,-818.01501314,0.00025629,2]
[377051813,1754221832820,-300.0,0.00025882,2]
[377051815,1754221832829,-2393.47743552,0.00025883,2]
[377051873,1754221838747,-319.144,0.00025883,2]
[377051921,1754221840696,-323.30000001,0.00025883,2]
[377051932,1754221840795,-1466.18634174,0.00025883,2]
[377052519,1754221846635,-1068.22273221,0.00025883,2]
[377053225,1754222300424,163.35658,0.00013699,2]
[377053226,1754222300646,163.35658,0.00020951,2]
[377053233,1754222744092,-972.02,0.00023111,2]
[377053234,1754222744113,-157.84267822,0.00023445,2]
[377053235,1754222744134,-392.00119054,0.00023545,2]
[377053236,1754222744154,-153.88034999,0.00023545,2]
[377053237,1754222785967,761.24035836,0.00021445,2]
[377053238,1754222797096,-5.65000684,0.00023545,2]
[377053239,1754222797118,-178.84569618,0.00025026,2]
[377053244,1754223031901,-1200.0,0.00025026,2]
[377053245,1754223031911,-300.0,0.00025026,2]
[377053246,1754223031921,-1312.66384966,0.00025027,2]
[377053247,1754223031930,-2180.66350294,0.00025027,2]
[377053368,1754223037864,-390.64406561,0.00025027,2]
[377053416,1754223087545,931.92701047,0.00022927,2]
[377053417,1754223157318,166.0,0.00026137,120]
[377053418,1754223193001,162.01882625,0.0003,120]
[377053419,1754223237935,162.01882626,0.0003,120]
[377053420,1754223260573,162.723768,0.00013699,2]
[377053421,1754223260793,162.723768,0.00020951,2]
[377053426,1754223388868,621.28467364,0.00022927,2]
[377053429,1754223484086,1000.0,0.0003,120]
[377053430,1754223746050,1000.0,0.00030137,120]
[377053431,1754223754647,1000.0,0.00030137,120]
[377053432,1754223829415,1000.0,0.00030137,120]
[377053433,1754223842999,1000.0,0.00030137,120]
[377053434,1754223850699,1000.0,0.00030137,120]
[377053435,1754223861862,1000.0,0.00030137,120]
[377053436,1754223874379,1000.0,0.00030137,120]
[377053437,1754223886720,1000.0,0.00030137,120]
[377053440,1754223934120,-1629.97916329,0.00023482,2]
[377053443,1754223990101,-184.6616703,0.00023482,2]
[377053444,1754223999404,813.16009927,0.00023062,2]
[377053447,1754224047717,206.87283894,0.00022718,2]
[377053450,1754224052202,1000.0,0.00023062,2]
[377053452,1754224074750,227.24498,0.00030137,120]
[377053453,1754224078342,1003.6,0.00023062,2]
[377053456,1754224122631,5000.0,0.00023062,2]
[377053458,1754224196733,5000.0,0.00023062,2]
[377053459,1754224212251,5000.0,0.00023062,2]
[377053461,1754224231288,162.467557,0.00013699,2]
[377053462,1754224231508,162.467557,0.00021404,2]
[377053470,1754224232232,-152.3548301,0.00023421,2]
[377053471,1754224232242,-160.15683092,0.00023658,2]